bitfinex-derivatives/quotes_BTCF0:USTF0_20240910
["timestamp","ask_amount","ask_price","bid_price","bid_amount"]
[1725995086712,0.09934953,57514.0,57513.0,0.086932]
[1725995086913,0.06076122,57514.0,57513.0,0.086932]
[1725995089614,0.03257586,57514.0,57513.0,0.20390842]
[1725995089811,0.11950686,57514.0,57513.0,0.20390842]
[1725995090511,0.07601586,57514.0,57513.0,0.20390842]
[1725995090711,0.07601586,57514.0,57513.0,0.086932]
[1725995090910,0.07601586,57514.0,57513.0,0.203608]
[1725995091312,0.1079497,57514.0,57513.0,0.30785038]
[1725995092516,0.1079497,57514.0,57513.0,0.203608]
[1725995092905,0.1079497,57514.0,57513.0,0.30784316]
[1725995093909,0.1079497,57514.0,57513.0,0.203608]
[1725995094109,0.1948807,57514.0,57513.0,0.116676]
[1725995094308,0.1948807,57514.0,57513.0,0.20353876]
[1725995094710,0.1948807,57514.0,57513.0,0.20370207]
[1725995094906,0.1948807,57514.0,57513.0,0.11683931]
[1725995095914,0.1948807,57514.0,57513.0,0.20370158]
[1725995096312,0.1948807,57514.0,57513.0,0.11683931]
[1725995096617,0.1948807,57514.0,57513.0,0.11370116]
[1725995096812,0.1079497,57514.0,57513.0,0.11370116]
[1725995098116,0.1079497,57514.0,57506.0,0.08687114]
[1725995098117,0.086941,57507.0,57506.0,0.08687114]
[1725995098322,0.086941,57507.0,57495.0,0.12022073]
[1725995098323,0.086943,57506.0,57505.0,0.08687114]
[1725995098520,0.173888,57505.0,57504.0,0.06948104]
[1725995098723,0.173888,57505.0,57500.0,0.08687114]
[1725995098724,0.173892,57504.0,57503.0,0.06948104]
[1725995098920,0.173892,57504.0,57502.0,0.06948104]
[1725995098921,0.173894,57503.0,57502.0,0.06948104]
[1725995099218,0.08695,57501.0,57500.0,0.06948104]
[1725995099820,0.086953,57499.0,57498.0,0.08680175]
[1725995100523,0.086953,57499.0,57498.0,0.17375675]
[1725995100710,0.086953,57499.0,57498.0,0.08680175]
[1725995101216,0.086953,57499.0,57497.0,0.06940772]
[1725995101217,0.23152721,57499.0,57497.0,0.06940772]
[1725995101418,0.206955,57498.0,57495.0,0.06940772]
[1725995101624,0.286958,57496.0,57493.0,0.06940772]
[1725995101812,0.086962,57493.0,57492.0,0.06940772]
[1725995102420,0.086964,57492.0,57491.0,0.06940772]
[1725995103212,0.085964,57492.0,57491.0,0.06940772]
[1725995103414,0.086965,57491.0,57490.0,0.086967]
[1725995103629,0.001,57493.0,57492.0,0.086964]
[1725995103824,0.001,57493.0,57492.0,0.35637172]
[1725995104010,0.2449,57505.0,57492.0,0.28680175]
[1725995104011,0.086946,57504.0,57492.0,0.28680175]
[1725995104212,0.1166,57505.0,57504.0,0.086946]
[1725995104421,0.03156118,57505.0,57504.0,0.286946]
[1725995104720,0.1244,57515.0,57504.0,0.2]
[1725995105022,0.086939,57509.0,57508.0,0.086938]
[1725995105612,0.358153,57511.0,57510.0,0.086937]
[1725995105821,0.10344908,57521.0,57510.0,0.6]
[1725995106024,0.10344908,57526.0,57514.0,0.2]
[1725995106224,0.08692,57521.0,57519.0,0.086922]
[1725995106814,0.086915,57525.0,57520.0,0.086921]
[1725995107014,0.10344908,57528.0,57520.0,0.086921]
[1725995107215,0.0281822,57527.0,57520.0,0.086921]
[1725995107411,0.0281822,57527.0,57511.0,0.1271]
[1725995107412,0.2,57525.0,57511.0,0.1271]
[1725995107616,0.2,57521.0,57511.0,0.1271]
[1725995107925,0.087921,57521.0,57518.0,0.086924]
[1725995108626,0.086921,57521.0,57518.0,0.086924]
[1725995108823,0.086921,57521.0,57514.0,0.2]
[1725995108824,0.201,57525.0,57514.0,0.2]
[1725995109123,0.086916,57524.0,57519.0,0.086922]
[1725995109520,0.086915,57525.0,57521.0,0.08692]
[1725995109725,0.03132623,57528.0,57521.0,0.08692]
[1725995109726,0.03132623,57528.0,57527.0,0.086911]
[1725995109921,0.086903,57532.0,57527.0,0.086911]
[1725995110117,0.11840763,57532.0,57528.0,0.086909]
[1725995110520,0.086905,57531.0,57528.0,0.086909]
[1725995110716,0.086905,57531.0,57522.0,0.2]
[1725995110920,0.086905,57531.0,57524.0,0.086914]
[1725995110921,0.086913,57526.0,57524.0,0.086914]
[1725995111225,0.086917,57523.0,57520.0,0.086921]
[1725995111426,0.086917,57523.0,57514.0,0.2]
[1725995111618,0.2,57527.0,57522.0,0.086917]
[1725995111619,0.001,57525.0,57522.0,0.086917]
[1725995111815,0.086918,57522.0,57521.0,0.08692]
[1725995112820,0.004,57526.0,57514.0,0.2]
[1725995112821,0.001,57525.0,57514.0,0.2]
[1725995113022,0.001,57525.0,57524.0,0.086915]
[1725995114914,0.11874539,57526.0,57525.0,0.086914]
[1725995115127,0.086905,57531.0,57522.0,0.2]
[1725995115330,0.4487,57538.0,57532.0,0.086902]
[1725995115518,0.4487,57538.0,57530.0,0.2]
[1725995115519,0.086901,57534.0,57533.0,0.086902]
[1725995117832,0.100901,57534.0,57533.0,0.086902]
[1725995118023,0.014,57534.0,57529.0,0.086907]
[1725995118327,0.086906,57530.0,57529.0,0.086907]
[1725995118526,0.086902,57533.0,57531.0,0.086903]
[1725995118833,0.086903,57532.0,57531.0,0.086903]
[1725995121129,0.098903,57532.0,57531.0,0.086903]
[1725995121529,0.012,57532.0,57531.0,0.086903]
[1725995123321,0.012,57532.0,57531.0,0.20576793]
[1725995123522,0.1286,57547.0,57531.0,1.24030293]
[1725995123724,0.086883,57546.0,57545.0,0.086883]
[1725995125228,0.012,57547.0,57546.0,0.086882]
[1725995125426,0.086871,57554.0,57553.0,0.086872]
[1725995125630,0.086871,57554.0,57553.0,0.286872]
[1725995126034,0.086871,57554.0,57553.0,0.086872]
[1725995126427,0.086866,57557.0,57555.0,0.086868]
[1725995127225,0.15333036,57559.0,57550.0,0.2]
[1725995127428,0.15333036,57559.0,57558.0,0.086864]
[1725995127636,0.35333036,57559.0,57547.0,0.2]
[1725995127931,0.08687,57555.0,57553.0,0.086871]
[1725995128128,0.08687,57555.0,57554.0,0.08687]
[1725995128434,0.27854242,57555.0,57554.0,0.04429361]
[1725995128934,0.27854242,57555.0,57553.0,0.001]
[1725995128935,0.08687,57554.0,57553.0,0.001]
[1725995129134,0.27806863,57554.0,57553.0,0.001]
[1725995129432,0.20777061,57554.0,57553.0,0.00051434]
[1725995129637,0.20777061,57554.0,57553.0,0.001]
[1725995129638,0.12090061,57554.0,57553.0,0.001]
[1725995129928,0.20777061,57554.0,57553.0,0.001]
[1725995130137,0.25792653,57554.0,57553.0,0.001]
[1725995130332,0.12090061,57554.0,57553.0,0.087872]
[1725995130528,0.20777061,57554.0,57553.0,0.001]
[1725995131033,0.25206045,57554.0,57553.0,0.001]
[1725995131234,0.086873,57552.0,57544.0,0.086885]
[1725995131441,0.086877,57550.0,57540.0,0.2]
[1725995131639,0.10279971,57543.0,57540.0,0.2]
[1725995132135,0.086877,57550.0,57540.0,0.2]
[1725995132136,0.02816453,57547.0,57540.0,0.28689]
[1725995132433,0.43049424,57563.0,57545.0,0.286884]
[1725995132434,0.07001349,57546.0,57545.0,0.286884]
[1725995132633,0.11993918,57549.0,57548.0,0.086879]
[1725995133332,0.34264808,57551.0,57549.0,0.086878]
[1725995133541,0.19014031,57550.0,57545.0,0.2]
[1725995133727,0.19014031,57550.0,57549.0,0.2]
[1725995133928,0.07000945,57550.0,57549.0,0.286878]
[1725995134138,0.04184165,57550.0,57549.0,0.286878]
[1725995134333,0.11906058,57550.0,57549.0,0.2]
[1725995134740,0.0908949,57550.0,57549.0,0.2]
[1725995135037,0.07022627,57550.0,57549.0,0.286878]
[1725995135230,0.05006059,57550.0,57549.0,0.287878]
[1725995135543,0.07822627,57550.0,57549.0,0.287878]
[1725995135842,0.28530814,57550.0,57549.0,0.287878]
[1725995136039,0.19843214,57550.0,57549.0,0.287878]
[1725995136241,0.126895,57550.0,57549.0,0.287878]
[1725995136741,0.126895,57550.0,57549.0,0.201]
[1725995136742,0.18536807,57550.0,57549.0,0.201]
[1725995136932,0.21353555,57550.0,57549.0,0.001]
[1725995138437,0.21371129,57550.0,57549.0,0.00052554]
[1725995138845,0.35078464,57550.0,57549.0,0.00052554]
[1725995139144,0.21371129,57550.0,57549.0,0.00052554]
[1725995139443,0.35078464,57550.0,57549.0,0.00052554]
[1725995139633,0.21371129,57550.0,57549.0,0.00052554]
[1725995139836,0.23243254,57550.0,57549.0,0.00052554]
[1725995140233,0.21371129,57550.0,57549.0,0.08740354]
[1725995140444,0.35127496,57550.0,57549.0,0.08740354]
[1725995140747,0.21371129,57550.0,57549.0,0.08740354]
[1725995141046,0.12683529,57550.0,57549.0,0.08740354]
[1725995141456,0.1270032,57550.0,57549.0,0.08740354]
[1725995141866,0.07819966,57550.0,57549.0,0.08740354]
[1725995142168,0.12840331,57550.0,57549.0,0.08740354]
[1725995142355,0.12663127,57550.0,57549.0,0.08740354]
[1725995142951,0.30921424,57563.0,57549.0,1.12180554]
[1725995143148,0.1144,57568.0,57559.0,0.2]
[1725995143363,0.1144,57568.0,57567.0,0.28685]
[1725995144367,0.1214,57568.0,57567.0,0.28685]
[1725995145062,0.03139822,57572.0,57571.0,0.086844]
[1725995145267,0.123,57581.0,57571.0,0.2]
[1725995145763,0.123,57581.0,57575.0,0.2]
[1725995146068,0.086832,57580.0,57575.0,0.2]
[1725995146264,0.123,57581.0,57567.0,0.08470217]
[1725995146265,0.123,57581.0,57579.0,0.2]
[1725995146777,0.3261,57588.0,57579.0,0.2]
[1725995146954,0.08683,57581.0,57574.0,0.2]
[1725995147858,0.086833,57579.0,57574.0,0.2]
[1725995148266,0.1161,57584.0,57574.0,0.2]
[1725995148466,0.086834,57579.0,57574.0,0.001]
[1725995148967,0.086834,57578.0,57574.0,0.001]
[1725995149162,0.086835,57577.0,57574.0,0.001]
[1725995149463,0.006,57579.0,57574.0,0.001]
[1725995149669,0.086838,57575.0,57574.0,0.001]
[1725995149965,0.11499388,57575.0,57574.0,0.001]
[1725995150264,0.52343188,57575.0,57574.0,0.001]
[1725995150468,0.68532769,57575.0,57574.0,0.001]
[1725995151164,0.08684,57574.0,57562.0,0.2]
[1725995151354,0.086854,57565.0,57562.0,0.2]
[1725995152054,0.086857,57563.0,57562.0,0.2]
[1725995152466,0.086857,57563.0,57562.0,0.203]
[1725995153374,0.11501598,57563.0,57562.0,0.203]
[1725995154263,0.11501598,57563.0,57562.0,0.003]
[1725995154465,0.20187298,57563.0,57562.0,0.003]
[1725995154668,0.086865,57558.0,57549.0,0.2382]
[1725995154860,0.086876,57550.0,57549.0,0.2382]
[1725995155259,0.086876,57550.0,57549.0,0.1161]
[1725995156162,0.086876,57550.0,57549.0,0.1301]
[1725995156364,0.11504131,57550.0,57549.0,0.1301]
[1725995156572,0.086876,57550.0,57549.0,0.1301]
[1725995158768,0.173752,57550.0,57549.0,0.014]
[1725995159367,0.173752,57550.0,57538.0,0.1138]
[1725995159368,0.086893,57539.0,57538.0,0.1138]
[1725995160674,0.086897,57536.0,57535.0,0.2]
[1725995161070,0.077897,57536.0,57535.0,0.2]
[1725995161371,0.077897,57536.0,57532.0,0.74]
[1725995161372,0.086902,57533.0,57532.0,0.74]
[1725995162275,0.077902,57533.0,57532.0,0.74]
[1725995162958,0.086903,57532.0,57531.0,0.2]
[1725995163366,0.086903,57532.0,57531.0,0.94]
[1725995163573,0.001,57536.0,57531.0,0.94]
[1725995163774,0.0316309,57539.0,57535.0,0.2]
[1725995163962,0.086891,57541.0,57535.0,0.2]
[1725995164274,0.22126929,57544.0,57540.0,0.2]
[1725995164275,0.10326929,57544.0,57540.0,0.2]
[1725995164469,0.03175606,57547.0,57540.0,0.2]
[1725995164671,0.207472,57553.0,57546.0,0.2]
[1725995164972,0.1123,57556.0,57546.0,0.2]
[1725995164973,0.08687,57554.0,57550.0,0.2]
[1725995165472,0.086875,57551.0,57550.0,0.2]
[1725995165660,0.03151174,57556.0,57550.0,0.2]
[1725995165862,0.086867,57556.0,57555.0,0.2]
[1725995166369,0.086873,57552.0,57551.0,0.286874]
[1725995166669,0.086863,57559.0,57551.0,0.286874]
[1725995166877,0.11849369,57559.0,57551.0,0.286874]
[1725995168280,0.001,57556.0,57551.0,0.286874]
[1725995168870,0.086869,57555.0,57549.0,0.051869]
[1725995169181,0.086882,57546.0,57545.0,0.051869]
[1725995169376,0.086887,57543.0,57542.0,0.051869]
[1725995169680,0.086887,57543.0,57540.0,0.15620959]
[1725995169681,0.086879,57548.0,57541.0,0.051869]
[1725995169875,0.086888,57542.0,57541.0,0.051869]
[1725995170173,0.086888,57542.0,57541.0,0.138759]
[1725995171566,0.086888,57542.0,57541.0,0.08689]
[1725995172268,0.11887227,57542.0,57541.0,0.08689]
[1725995172870,0.11887227,57542.0,57541.0,0.138759]
[1725995173072,0.11887227,57542.0,57541.0,0.08689]
[1725995176677,0.001,57542.0,57541.0,0.08689]
[1725995177879,0.001,57542.0,57525.0,0.051869]
[1725995177880,0.086908,57529.0,57525.0,0.051869]
[1725995178080,0.086914,57526.0,57524.0,0.086914]
[1725995178281,0.08691,57528.0,57516.0,0.399727]
[1725995178492,0.2,57534.0,57525.0,0.086913]
[1725995178787,0.086911,57527.0,57525.0,0.086913]
[1725995178985,0.086911,57527.0,57526.0,0.086912]
[1725995179175,0.206599,57535.0,57517.0,0.74]
[1725995179176,0.1197,57535.0,57524.0,0.2]
[1725995179379,0.2408,57541.0,57531.0,0.2]
[1725995179380,0.086902,57533.0,57531.0,0.2]
[1725995179580,0.086896,57537.0,57534.0,0.0869]
[1725995179779,0.086896,57537.0,57536.0,0.086897]
[1725995180290,0.204191,57540.0,57535.0,0.2]
[1725995180592,0.15238573,57541.0,57540.0,0.086891]
[1725995180593,0.03198573,57541.0,57540.0,0.086891]
[1725995180782,0.08689,57541.0,57540.0,0.086891]
[1725995181285,0.03070568,57542.0,57539.0,0.2]
[1725995181479,0.086885,57545.0,57539.0,0.2]
[1725995181480,0.086878,57549.0,57539.0,0.2]
[1725995181681,0.086879,57548.0,57544.0,0.2]
[1725995181986,0.086876,57551.0,57544.0,0.2]
[1725995182181,0.086876,57551.0,57548.0,0.086879]
[1725995182488,0.086876,57551.0,57550.0,0.086876]
[1725995183982,0.031783,57552.0,57550.0,0.086876]
[1725995184180,0.086869,57555.0,57551.0,0.086875]
[1725995184375,0.086871,57554.0,57551.0,0.086875]
[1725995184880,0.1173,57557.0,57542.0,0.82279106]
[1725995185084,0.086865,57558.0,57553.0,0.2]
[1725995185389,0.11822536,57558.0,57556.0,0.086867]
[1725995185780,0.03136036,57558.0,57557.0,0.286866]
[1725995186083,0.086858,57562.0,57561.0,0.08686]
[1725995186884,0.10326929,57571.0,57565.0,0.086853]
[1725995187186,0.086847,57570.0,57567.0,0.08685]
[1725995187383,0.086847,57569.0,57567.0,0.08685]
[1725995187577,0.086848,57569.0,57566.0,0.086852]
[1725995187778,0.03086073,57574.0,57566.0,0.086852]
[1725995187990,0.086839,57575.0,57566.0,0.086852]
[1725995188175,0.34036929,57577.0,57562.0,0.086857]
[1725995188176,0.086841,57573.0,57562.0,0.086857]
[1725995188375,0.086853,57566.0,57563.0,0.086856]
[1725995188580,0.086853,57566.0,57561.0,0.2]
[1725995188790,0.004,57569.0,57561.0,0.2]
[1725995188987,0.090848,57569.0,57561.0,0.2]
[1725995189183,0.08685,57568.0,57565.0,0.086852]
[1725995190288,0.086841,57573.0,57565.0,0.086852]
[1725995190289,0.086851,57567.0,57565.0,0.086852]
[1725995190788,0.086852,57566.0,57565.0,0.086852]
[1725995192285,0.089852,57566.0,57565.0,0.086852]
[1725995192585,0.08687,57554.0,57546.0,0.086882]
[1725995192887,0.08687,57554.0,57536.0,0.06931959]
[1725995192888,0.286875,57551.0,57544.0,0.086885]
[1725995193088,0.08689,57541.0,57535.0,0.364369]
[1725995193389,0.086884,57546.0,57535.0,0.3125]
[1725995193590,0.086884,57545.0,57537.0,0.086896]
[1725995193787,0.086884,57545.0,57538.0,0.086894]
[1725995193982,0.086884,57545.0,57539.0,0.086892]
[1725995194785,0.086878,57549.0,57535.0,1.1325]
[1725995194987,0.086878,57549.0,57542.0,0.086887]
[1725995195194,0.001,57554.0,57546.0,0.086882]
[1725995195195,0.10341297,57547.0,57546.0,0.086882]
[1725995195388,0.02816932,57547.0,57546.0,0.366882]
[1725995195587,0.10341297,57549.0,57546.0,0.366882]
[1725995195782,0.10341297,57549.0,57547.0,0.08688]
[1725995196192,0.02816932,57548.0,57547.0,0.08688]
[1725995196879,0.02816932,57548.0,57546.0,0.28]
[1725995196880,0.001,57549.0,57548.0,0.086879]
[1725995197281,0.02916678,57549.0,57548.0,0.086879]
[1725995198194,0.13257975,57549.0,57548.0,0.086879]
[1725995198389,0.07262127,57549.0,57535.0,0.8525]
[1725995198590,0.086897,57536.0,57534.0,0.1214]
[1725995198897,0.086897,57536.0,57518.0,0.3267]
[1725995198898,0.10342205,57536.0,57524.0,0.086915]
[1725995199085,0.10342205,57536.0,57521.0,0.28]
[1725995199086,0.086908,57530.0,57523.0,0.0308573]
[1725995199288,0.086908,57530.0,57522.0,0.74]
[1725995199289,0.02817331,57529.0,57522.0,0.74]
[1725995199489,0.02817331,57528.0,57522.0,0.74]
[1725995199698,0.19033005,57530.0,57522.0,0.74]
[1725995199898,0.11508532,57529.0,57522.0,0.74]
[1725995200095,0.02817632,57528.0,57522.0,0.74]
[1725995200596,0.02817632,57528.0,57524.0,0.086914]
[1725995200896,0.02817632,57528.0,57522.0,0.74]
[1725995201099,0.28,57525.0,57507.0,0.28]
[1725995201286,0.086927,57517.0,57507.0,0.31098873]
[1725995201485,0.08692,57521.0,57507.0,0.31098873]
[1725995201688,0.08692,57521.0,57518.0,0.086924]
[1725995201893,0.02818055,57520.0,57513.0,0.086932]
[1725995202089,0.086924,57519.0,57514.0,0.08693]
[1725995202289,0.086924,57519.0,57515.0,0.086928]
[1725995202499,0.001,57517.0,57515.0,0.086928]
[1725995203496,0.001,57517.0,57514.0,0.06931959]
[1725995203702,0.086925,57518.0,57516.0,0.05183857]
[1725995204193,0.086925,57518.0,57515.0,0.05183857]
[1725995204799,0.001,57518.0,57515.0,0.05183857]
[1725995205301,0.086924,57519.0,57514.0,0.13876857]
[1725995205502,0.001,57518.0,57514.0,0.13876857]
[1725995205705,0.001,57518.0,57514.0,0.05183857]
[1725995206003,0.086929,57515.0,57514.0,0.05183857]
[1725995206203,0.086929,57515.0,57513.0,0.05183857]
[1725995207103,0.086929,57515.0,57512.0,0.13877257]
[1725995207692,0.086929,57515.0,57513.0,0.74]
[1725995208088,0.087929,57515.0,57513.0,0.74]
[1725995208301,0.087929,57515.0,57513.0,0.826932]
[1725995208589,0.11874931,57520.0,57516.0,0.086927]
[1725995208794,0.72700001,57531.0,57516.0,0.086927]
[1725995209603,0.26600962,57527.0,57516.0,0.086927]
[1725995209994,0.26600962,57527.0,57513.0,0.74]
[1725995210302,0.001,57515.0,57513.0,0.74]
[1725995210604,0.001,57515.0,57514.0,0.086931]
[1725995211503,0.086925,57518.0,57515.0,0.086928]
[1725995212105,0.086927,57516.0,57515.0,0.086928]
[1725995212703,0.173858,57515.0,57514.0,0.014]
[1725995212894,0.695458,57515.0,57514.0,0.014]
[1725995213093,0.695458,57515.0,57500.0,0.086951]
[1725995213094,0.086931,57514.0,57500.0,0.086951]
[1725995213298,0.08695,57501.0,57500.0,0.086951]
[1725995213898,0.366944,57506.0,57502.0,0.086948]
[1725995214105,0.086947,57504.0,57502.0,0.086948]
[1725995214407,0.28,57511.0,57500.0,0.014]
[1725995214612,0.001,57501.0,57500.0,0.100952]
[1725995214914,0.086939,57509.0,57500.0,0.014]
[1725995215102,0.001,57506.0,57504.0,0.086944]
[1725995215302,0.001,57506.0,57505.0,0.086944]
[1725995216806,0.11806396,57513.0,57510.0,0.086936]
[1725995217000,0.001,57511.0,57510.0,0.086936]
[1725995217402,0.11806396,57513.0,57510.0,0.086936]
[1725995217619,0.086934,57512.0,57502.0,0.77150667]
[1725995217910,0.086951,57501.0,57496.0,0.1103]
[1725995218102,0.086951,57501.0,57500.0,0.086952]
[1725995218300,0.28,57502.0,57495.0,0.03189491]
[1725995218506,0.28,57502.0,57489.0,0.06035125]
[1725995218507,0.086962,57494.0,57489.0,0.06035125]
[1725995218706,0.086962,57494.0,57488.0,0.05183857]
[1725995218911,0.366956,57497.0,57493.0,0.086961]
[1725995219208,0.366956,57497.0,57496.0,0.086958]
[1725995219209,0.086956,57497.0,57496.0,0.086958]
[1725995219815,0.366949,57502.0,57492.0,0.086963]
[1725995220112,0.086956,57498.0,57487.0,0.05183857]
[1725995220406,0.086956,57498.0,57496.0,0.001]
[1725995220407,0.086955,57498.0,57496.0,0.001]
[1725995220813,0.086955,57498.0,57497.0,0.086956]
[1725995221007,0.001,57501.0,57493.0,0.086961]
[1725995221008,0.002,57501.0,57493.0,0.086961]
[1725995221211,0.086962,57493.0,57492.0,0.001]
[1725995221427,0.366962,57493.0,57492.0,0.001]
[1725995222417,0.366962,57493.0,57477.0,0.16953857]
[1725995222418,0.086974,57486.0,57477.0,0.16953857]
[1725995222605,0.366962,57493.0,57477.0,0.1177]
[1725995222606,0.2286,57492.0,57477.0,0.1177]
[1725995222912,0.086968,57490.0,57484.0,0.086976]
[1725995223907,0.086969,57489.0,57484.0,0.086976]
[1725995224115,0.08697,57488.0,57484.0,0.086976]
[1725995224609,0.2296,57492.0,57486.0,0.086973]
[1725995224813,0.26041959,57492.0,57477.0,0.1177]
[1725995225014,0.086973,57487.0,57482.0,0.086978]
[1725995225213,0.086974,57486.0,57482.0,0.086978]
[1725995225920,0.086974,57486.0,57483.0,0.086977]
[1725995226215,0.281,57488.0,57484.0,0.001]
[1725995226216,0.086974,57485.0,57484.0,0.001]
[1725995226619,0.367971,57488.0,57484.0,0.001]
[1725995226806,0.001,57488.0,57481.0,0.05183857]
[1725995227115,0.001,57488.0,57487.0,0.086971]
[1725995227305,0.201364,57492.0,57489.0,0.086967]
[1725995227503,0.1144,57492.0,57483.0,0.05183857]
[1725995227715,0.03085718,57492.0,57491.0,0.086965]
[1725995227907,0.1205,57501.0,57485.0,0.28]
[1725995228103,0.1205,57501.0,57487.0,0.086971]
[1725995228406,0.001,57488.0,57487.0,0.13880957]
[1725995228817,0.366957,57497.0,57494.0,0.086961]
[1725995229019,0.086958,57496.0,57487.0,0.05183857]
[1725995229215,0.086962,57493.0,57492.0,0.086962]
[1725995229708,0.366962,57493.0,57492.0,0.086962]
[1725995230216,1.4018,57493.0,57485.0,0.05183857]
[1725995230405,1.4018,57493.0,57476.0,0.1042398]
[1725995230406,0.56,57488.0,57476.0,0.06931959]
[1725995230609,0.56,57488.0,57467.0,0.05180144]
[1725995230610,0.28,57477.0,57467.0,0.05180144]
[1725995230827,0.28,57468.0,57467.0,0.087]
[1725995231517,0.087008,57463.0,57462.0,0.05178042]
[1725995231706,0.087008,57463.0,57452.0,0.05178042]
[1725995231707,0.087009,57462.0,57452.0,0.05178042]
[1725995231909,0.087027,57451.0,57447.0,0.05178042]
[1725995232113,0.28,57453.0,57446.0,0.05178042]
[1725995232417,0.28,57457.0,57446.0,0.05178042]
[1725995232610,0.28,57463.0,57449.0,0.05178042]
[1725995233016,0.28,57463.0,57450.0,0.05178042]
[1725995233318,0.087008,57463.0,57458.0,0.087015]
[1725995233516,0.1122,57467.0,57458.0,0.087015]
[1725995233517,0.28,57461.0,57458.0,0.087015]
[1725995234305,0.001,57463.0,57458.0,0.087015]
[1725995234813,0.001,57463.0,57446.0,0.1152]
[1725995234814,0.001,57463.0,57449.0,0.05178042]
[1725995235110,0.28,57459.0,57454.0,0.087021]
[1725995236015,0.28,57459.0,57446.0,0.16698042]
[1725995236207,0.28,57459.0,57454.0,0.087021]
[1725995236407,0.281,57459.0,57446.0,0.16698042]
[1725995237119,0.281,57459.0,57441.0,0.20634]
[1725995237120,0.28,57454.0,57451.0,0.087025]
[1725995237312,0.28,57454.0,57444.0,0.05178042]
[1725995237514,0.08703,57448.0,57444.0,0.05178042]
[1725995237718,0.28,57450.0,57441.0,0.05178042]
[1725995237719,0.21904597,57450.0,57441.0,0.05178042]
[1725995237920,0.087025,57452.0,57446.0,0.087032]
[1725995238216,0.26972037,57458.0,57443.0,0.087037]
[1725995238217,0.087031,57448.0,57443.0,0.087037]
[1725995238416,0.28,57449.0,57443.0,0.087037]
[1725995238417,0.087035,57446.0,57443.0,0.087037]
[1725995238623,0.087038,57443.0,57440.0,0.087042]
[1725995239120,0.087032,57447.0,57434.0,0.05178042]
[1725995239316,0.087034,57446.0,57433.0,0.05178042]
[1725995239519,0.087034,57446.0,57442.0,0.087039]
[1725995239723,0.087041,57441.0,57438.0,0.087045]
[1725995240525,0.087041,57441.0,57439.0,0.087044]
[1725995240710,0.001,57441.0,57431.0,0.087056]
[1725995240915,0.001,57441.0,57430.0,0.05178042]
[1725995241112,0.001,57441.0,57431.0,0.05178042]
[1725995241320,0.28,57439.0,57431.0,0.05178042]
[1725995241526,0.087046,57438.0,57435.0,0.08705]
[1725995241821,0.089042,57441.0,57437.0,0.087046]
[1725995242012,0.002,57441.0,57437.0,0.087046]
[1725995242213,0.002,57441.0,57431.0,0.05178042]
[1725995242214,0.367045,57439.0,57431.0,0.05178042]
[1725995242436,0.087053,57434.0,57430.0,0.087058]
[1725995242624,0.368045,57439.0,57429.0,0.05178042]
[1725995243117,0.368045,57439.0,57421.0,0.087071]
[1725995243118,0.087049,57436.0,57434.0,0.087051]
[1725995243319,0.368045,57439.0,57425.0,0.06906859]
[1725995243320,0.001,57439.0,57438.0,0.087046]
[1725995243506,0.001,57439.0,57429.0,0.05178042]
[1725995243707,0.001,57439.0,57428.0,0.05178042]
[1725995243911,0.28,57432.0,57421.0,0.12084901]
[1725995244213,0.28,57432.0,57417.0,0.08680175]
[1725995244214,0.087076,57418.0,57417.0,0.05178042]
[1725995244513,0.28,57422.0,57405.0,0.05178042]
[1725995244717,0.28,57422.0,57415.0,0.08708]
[1725995244918,0.28,57422.0,57407.0,0.05178042]
[1725995244919,0.39888894,57422.0,57407.0,0.05178042]
[1725995245219,0.39888894,57422.0,57404.0,0.34906859]
[1725995245220,0.28,57413.0,57406.0,0.13887442]
[1725995245522,0.28,57430.0,57403.0,0.05178042]
[1725995245523,0.28,57409.0,57403.0,0.05178042]
[1725995245716,0.28,57409.0,57403.0,0.087098]
[1725995245917,0.28,57409.0,57401.0,0.05178042]
[1725995245918,0.28,57409.0,57404.0,0.087097]
[1725995246327,0.28,57409.0,57400.0,0.13888342]
[1725995246621,0.28,57404.0,57392.0,0.05178042]
[1725995247018,0.28,57404.0,57389.0,0.06906859]
[1725995247019,0.28,57404.0,57399.0,0.087105]
[1725995247522,0.001,57413.0,57394.0,0.087112]
[1725995247523,0.28,57400.0,57394.0,0.087112]
[1725995247723,0.087107,57398.0,57388.0,0.08712]
[1725995248027,0.087107,57398.0,57375.0,0.1042398]
[1725995248028,0.28,57391.0,57383.0,0.05178042]
[1725995248224,0.28,57386.0,57380.0,0.05178042]
[1725995248415,0.28,57386.0,57379.0,0.13891542]
[1725995248616,0.28,57390.0,57375.0,0.05178042]
[1725995248818,0.28,57396.0,57386.0,0.087124]
[1725995249018,0.28,57396.0,57378.0,0.28]
[1725995249227,0.28,57391.0,57388.0,0.087121]
[1725995249425,0.002,57386.0,57382.0,0.08713]
[1725995249622,0.002,57386.0,57374.0,0.087141]
[1725995249831,0.002,57386.0,57367.0,0.05178042]
[1725995249832,0.28,57377.0,57367.0,0.05178042]
[1725995250018,0.1104,57385.0,57360.0,0.05178042]
[1725995250019,0.28,57368.0,57360.0,0.05178042]
[1725995250327,0.28,57368.0,57366.0,0.087154]
[1725995251231,0.28,57367.0,57363.0,0.087159]
[1725995251522,0.28,57379.0,57378.0,0.087137]
[1725995251725,0.28,57384.0,57363.0,0.28]
[1725995251929,0.3261,57404.0,57360.0,0.087164]
[1725995251930,0.28,57389.0,57388.0,0.087121]